fUST/lending_fUST_20260116
["ID","MTS","AMOUNT","RATE_DAILY","PERIOD"]
[402141756,1768551443024,168.24,6.135e-05,2]
[402141757,1768551443454,336.48,6.692e-05,2]
[402141758,1768551443889,504.71,7.25e-05,2]
[402141759,1768551444290,672.95,7.808e-05,2]
[402141760,1768551444692,841.19,8.366e-05,2]
[402141761,1768551445099,958.51112416,8.923e-05,2]
[402141762,1768551449196,-50.91887584,8.923e-05,2]
[402141763,1768551449220,-376.3681216,9.481e-05,2]
[402141764,1768551453736,-224.35942418,9.481e-05,2]
[402141765,1768551455245,-200.99521863,9.481e-05,2]
[402141766,1768551456250,-375.94723559,9.481e-05,2]
[402141767,1768551456282,-1345.91,0.00010039,2]
[402141768,1768551456311,-1514.14,0.00010596,2]
[402141769,1768551456342,-1682.38,0.00011154,2]
[402141771,1768551483619,163.25552882,0.00013273,2]
[402141772,1768551483644,335.16739731,0.00013273,2]
[402141773,1768551483672,172.90141714,0.00013273,2]
[402141774,1768551517721,164.41,5.968e-05,2]
[402141775,1768551518127,328.82,6.51e-05,2]
[402141776,1768551518535,493.22,7.053e-05,2]
[402141777,1768551519491,657.63,7.595e-05,2]
[402141778,1768551519902,822.04,8.138e-05,2]
[402141779,1768551520298,986.45,8.68e-05,2]
[402141780,1768551526326,-1150.85,9.223e-05,2]
[402141781,1768551526359,-1315.26,9.765e-05,2]
[402141782,1768551526392,-1479.67,0.00010308,2]
[402141783,1768551526423,-464.37,0.0001085,2]
[402141784,1768551527342,-342.69,0.0001085,2]
[402141785,1768551529215,-837.02,0.0001085,2]
[402141786,1768551529242,-308.86248808,0.00013699,2]
[402141787,1768551529270,-501.82620036,0.00013699,2]
[402141788,1768551547201,500.0,0.00013273,2]
[402141789,1768551547268,500.0,0.00013273,2]
[402141791,1768551593718,254.13,6.462e-05,2]
[402141792,1768551594119,381.2,7e-05,2]
[402141793,1768551594525,508.26,7.539e-05,2]
[402141794,1768551594929,635.33,8.077e-05,2]
[402141795,1768551595345,762.39,8.616e-05,2]
[402141796,1768551595801,889.46,9.154e-05,2]
[402141797,1768551596405,1016.52,9.693e-05,2]
[402141798,1768551596803,1143.59,0.00010231,2]
[402141799,1768551610830,-328.09031649,0.0001077,2]
[402141800,1768551616302,-263.18293852,0.0001077,2]
[402141801,1768551622414,-301.85311576,0.0001077,2]
[402141802,1768551624470,-210.47004235,0.0001077,2]
[402141803,1768551630984,-167.06358688,0.0001077,2]
[402141804,1768551631006,-66.83270086,0.0001077,2]
[402141805,1768551632521,-369.56492912,0.0001077,2]
[402141809,1768551686443,-172.34052008,6.986e-05,2]
[402141810,1768551688662,-12.04947992,6.986e-05,2]
[402141811,1768551688688,-245.85,7.523e-05,2]
[402141812,1768551688716,-192.60008397,8.061e-05,2]
[402141813,1768551694414,-114.71991603,8.061e-05,2]
[402141814,1768551694439,-368.78,8.598e-05,2]
[402141815,1768551694465,-16.50008397,9.136e-05,2]
[402141816,1768551696654,-413.73991603,9.136e-05,2]
[402141817,1768551696685,-86.26008397,9.673e-05,2]
[402141818,1768551698189,-268.56228605,9.673e-05,2]
[402141819,1768551702841,-136.87762998,9.673e-05,2]
[402141820,1768551702866,-163.12237002,0.0001021,2]
[402141821,1768551704953,-341.64940547,0.0001021,2]
[402141822,1768551710704,-48.39822451,0.0001021,2]
[402141823,1768551710733,-256.21177549,0.00010748,2]
[402141824,1768551719712,-169.08926153,0.00010479,2]
[402141825,1768551719741,-10.08589921,0.00010748,2]
[402141826,1768551721917,-179.01016908,0.00010748,2]
[402141827,1768551745283,-190.85,6.772e-05,2]
[402141828,1768551745309,-184.00114966,7.293e-05,2]
[402141829,1768551750009,-70.45885034,7.293e-05,2]
[402141830,1768551750036,-96.6088971,7.814e-05,2]
[402141831,1768551751528,-221.4711029,7.814e-05,2]
[402141832,1768551751554,-189.44479432,8.334e-05,2]
[402141833,1768551753658,-192.24520568,8.334e-05,2]
[402141834,1768551753685,-48.50688595,8.855e-05,2]
[402141835,1768551757492,-180.937,8.855e-05,2]
[402141836,1768551759677,-180.937,8.855e-05,2]
[402141837,1768551766174,-34.92911405,8.855e-05,2]
[402141838,1768551766200,-165.27917162,9.376e-05,2]
[402141839,1768551768962,-209.87609312,9.376e-05,2]
[402141840,1768551774293,-133.76473526,9.376e-05,2]
[402141841,1768551774317,-94.69526474,9.897e-05,2]
[402141842,1768551776913,-237.29882273,9.897e-05,2]
[402141843,1768551782315,-187.20418056,9.897e-05,2]
[402141844,1768551784632,-53.34173197,9.897e-05,2]
[402141845,1768551784665,-164.54999856,0.00010418,2]
[402141846,1768551786616,-156.19160574,0.00010418,2]
[402141847,1768551789930,-241.89622822,0.00010418,2]
[402141848,1768551835311,-166.32,6.907e-05,2]
[402141849,1768551835336,-50.02337798,7.438e-05,2]
[402141850,1768551835372,-171.73662202,7.438e-05,2]
[402141851,1768551835405,-277.2,7.97e-05,2]
[402141852,1768551835443,-332.64,8.501e-05,2]
[402141853,1768551837138,-174.92844212,9.032e-05,2]
[402141854,1768551839276,-213.14155788,9.032e-05,2]
[402141855,1768551839301,-17.81060816,9.564e-05,2]
[402141856,1768551841544,-286.26583423,9.564e-05,2]
[402141857,1768551847458,-139.43355761,9.564e-05,2]
[402141858,1768551847483,-13.41605737,0.00010095,2]
[402141859,1768551849621,-300.0,0.00010095,2]
[402141861,1768551894231,177.09,7.349e-05,2]
[402141862,1768551894688,221.36,7.874e-05,2]
[402141863,1768551895270,265.63,8.398e-05,2]
[402141864,1768551910368,-309.9,8.923e-05,2]
[402141865,1768551910400,-208.01666853,9.448e-05,2]
[402141866,1768551913293,-146.15333147,9.448e-05,2]
[402141867,1768551913325,-28.67838371,9.973e-05,2]
[402141868,1768551917675,-327.44161629,9.973e-05,2]
[402141869,1768551955356,-42.32,9.973e-05,2]
[402141870,1768551955404,-275.80240137,0.00010498,2]
[402141913,1768552232271,-180.47308766,0.00011492,2]
[402141915,1768552232280,-160.0,0.000123,2]
[402141917,1768552232290,-179.1,0.00012495,2]
[402141919,1768552232299,-160.0,0.000131,2]
[402141921,1768552232308,-500.0,0.00013273,2]
[402141923,1768552232317,-500.0,0.00013273,2]
[402141925,1768552232327,-500.0,0.00013273,2]
[402141927,1768552232337,-500.0,0.00013273,2]
[402141929,1768552232347,-160.0,0.000133,2]
[402141931,1768552232356,-214.92,0.00013328,2]
[402141933,1768552232366,-212.95824344,0.00013492,2]
[402141935,1768552232375,-2677.26077992,0.00013492,2]
[402141937,1768552232384,-1000.0,0.00013699,2]
[402141939,1768552232394,-300.0,0.0001382,2]
[402141941,1768552232403,-1000.0,0.00013821,2]
[402141943,1768552232412,-1000.0,0.00013821,2]
[402141945,1768552232422,-574.08865466,0.00013821,2]
[402141947,1768552232431,-160.0,0.000139,2]
[402141949,1768552232441,-250.74,0.00014161,2]
[402141951,1768552232450,-1085.06424983,0.00014368,2]
[402141953,1768552232459,-1500.0,0.00014368,2]
[402141955,1768552232469,-160.0,0.000144,2]
[402141957,1768552232479,-250.0,0.00014598,2]
[402141959,1768552232488,-160.0,0.000146,2]
[402141961,1768552232497,-300.0,0.00014655,2]
[402141963,1768552232507,-300.0,0.00014655,2]
[402141965,1768552232516,-300.0,0.00014655,2]
[402141967,1768552232525,-300.0,0.00014655,2]
[402141969,1768552232535,-300.0,0.00014655,2]
[402141971,1768552232545,-300.0,0.00014655,2]
[402141973,1768552232555,-300.0,0.00014655,2]
[402141975,1768552232564,-300.0,0.00014655,2]
[402141977,1768552232574,-300.0,0.00014655,2]
[402141979,1768552232583,-160.0,0.000147,2]
[402141981,1768552232592,-595.13344201,0.000149,2]
[402141983,1768552232603,-2000.0,0.00014916,2]
[402141985,1768552232613,-286.56,0.00014994,2]
[402141987,1768552232622,-2379.72230547,0.00015,2]
[402141989,1768552232632,-1372.70791662,0.00015,3]
[402141991,1768552232641,-151.04375224,0.00015,2]
[402141993,1768552232651,-29659.05896459,0.00015,7]
[402141995,1768552232662,-1027.6,0.00015,7]
[402141998,1768552232675,-5763.83576447,0.00015,7]
[402142000,1768552232685,-17294.66422918,0.00015,7]
[402142009,1768552232764,-488.93656277,0.00015,7]
[402142012,1768552232776,-1079.27782078,0.00015,7]
[402142069,1768552238313,-103283.57847861,0.00015,7]
[402142070,1768552238323,-1443.33789653,0.000153,2]
[402142072,1768552238333,-156.21441213,0.000154,2]
[402142074,1768552238343,-160.0,0.000154,2]
[402142076,1768552238352,-1000.0,0.00015464,2]
[402142078,1768552238362,-245.44339922,0.00015492,2]
[402142080,1768552238372,-160.0,0.000155,2]
[402142082,1768552238381,-322.38,0.00015826,2]
[402142084,1768552238391,-215.94196055,0.00016,2]
[402142086,1768552238400,-2150.738,0.00016179,2]
[402142088,1768552238409,-422.02463319,0.00016179,2]
[402142090,1768552238419,-445.202766,0.00016179,2]
[402142092,1768552238428,-162.380719,0.00016179,2]
[402142094,1768552238437,-168.3888056,0.00016179,2]
[402142096,1768552238447,-174.61919141,0.00016179,2]
[402142098,1768552238457,-181.08010149,0.00016179,2]
[402142100,1768552238466,-187.78006525,0.00016179,2]
[402142102,1768552238476,-194.72792766,0.00016179,2]
[402142104,1768552238485,-201.93286099,0.00016179,2]
[402142106,1768552238495,-209.40437684,0.00016179,2]
[402142108,1768552238505,-217.15233878,0.00016179,2]
[402142110,1768552238515,-225.18697532,0.00016179,2]
[402142112,1768552238524,-233.51889341,0.00016179,2]
[402142113,1768552238533,-242.15909246,0.00016179,2]
[402142114,1768552238542,-251.11897888,0.00016179,2]
[402142115,1768552238552,-260.4103811,0.00016179,2]
[402142116,1768552238562,-270.0455652,0.00016179,2]
[402142117,1768552238572,-280.03725112,0.00016179,2]
[402142118,1768552238582,-290.39862941,0.00016179,2]
[402142119,1768552238591,-301.1433787,0.00016179,2]
[402142120,1768552238601,-250.0,0.00016213,2]
[402142121,1768552238610,-160.0,0.000163,2]
[402142122,1768552238620,-156.21441213,0.00016341,17]
[402142123,1768552238630,-1041.66666667,0.00016521,2]
[402142124,1768552238642,-358.2,0.00016659,2]
[402142125,1768552238653,-2230.315306,0.00016727,2]
[402142126,1768552238669,-461.67526834,0.00016727,2]
[402142127,1768552238689,-180.1928063,0.00016896,2]
[402142128,1768552238709,-583.42190144,0.00016999,2]
[402142129,1768552238729,-404.79077482,0.00016999,2]
[402142130,1768552238739,-111527.81167446,0.00017,2]
[402142131,1768552238749,-140511.87845182,0.0001701,3]
[402142132,1768552238760,-1443.33789653,0.00017014,2]
[402142133,1768552238770,-2312.83697232,0.00017275,2]
[402142134,1768552238780,-478.75725327,0.00017275,2]
[402142135,1768552238789,-156.21441213,0.00017283,32]
[402142136,1768552238799,-277.928555,0.00017492,2]
[402142137,1768552238813,-160.0,0.000175,3]
[402142138,1768552238826,-160.0,0.000175,2]
[402142139,1768552238836,-2000.0,0.00017692,2]
[402142140,1768552238846,-2000.0,0.00017692,2]
[402142141,1768552238856,-2000.0,0.00017692,2]
[402142142,1768552238866,-2000.0,0.00017692,2]
[402142143,1768552238876,-609.84,0.00017692,2]
[402142144,1768552238886,-1000.0,0.00017723,2]
[402142145,1768552238896,-1000.0,0.00017723,2]
[402142146,1768552238906,-1000.0,0.00017723,2]
[402142147,1768552238916,-1000.0,0.00017723,2]
[402142148,1768552238926,-3000.0,0.00017758,7]
[402142149,1768552238936,-160.0,0.000178,4]
[402142150,1768552238946,-160.0,0.000178,3]
[402142151,1768552238956,-160.0,0.000178,5]
[402142152,1768552238966,-2398.4119403,0.00017823,2]
[402142153,1768552238976,-496.47127164,0.00017823,2]
[402142154,1768552238986,-501.15478792,0.00018,2]
[402142155,1768552238996,-156.21441213,0.00018224,48]
[402142156,1768552239006,-168.0,0.0001833,2]
[402142157,1768552239016,-2487.15318209,0.00018371,2]
[402142158,1768552239026,-514.84070869,0.00018371,2]
[402142159,1768552239036,-728.0,0.00018411,2]
[402142160,1768552239047,-151.0,0.00018411,2]
[402142161,1768552239057,-168.0,0.00018445,2]
[402142162,1768552239067,-728.0,0.00018531,2]
[402142163,1768552239078,-728.0,0.00018564,2]
[402142164,1768552239088,-168.0,0.00018591,2]
[402142165,1768552239098,-168.0,0.00018689,2]
[402142166,1768552239108,-1443.33789653,0.00018728,2]
[402142167,1768552239118,-130432.11244381,0.00018777,2]
[402142168,1768552239128,-728.0,0.00018836,2]
[402142169,1768552239138,-3000.0,0.00018854,7]
[402142170,1768552239148,-168.0,0.00018885,2]
[402142171,1768552239158,-303.10001603,0.000189,2]
[402142172,1768552239168,-151.0,0.000189,2]
[402142173,1768552239177,-160.0,0.000189,7]
[402142174,1768552239186,-160.0,0.000189,6]
[402142175,1768552239196,-303.10001603,0.000189,2]
[402142176,1768552239206,-2579.17784983,0.00018919,2]
[402142177,1768552239216,-533.88981491,0.00018919,2]
[402142178,1768552239225,-199.81913383,0.00018947,2]
[402142179,1768552239235,-504.48406529,0.00018952,5]
[402142180,1768552239245,-177.916,0.00018958,2]
[402142181,1768552239254,-168.0,0.00018959,2]
[402142182,1768552239265,-500.0,0.00019013,2]
[402142183,1768552239278,-744.0,0.00019013,2]
[402142185,1768552239288,-500.0,0.00019013,2]
[402142186,1768552239298,-500.0,0.00019013,2]
[402142187,1768552239415,-151.04172101,0.00019013,2]
[402142188,1768552239424,-500.0,0.00019013,2]
[402142189,1768552239434,-500.0,0.00019013,2]
[402142190,1768552239443,-151.0,0.00019055,2]
[402142191,1768552239452,-303.10001603,0.00019089,2]
[402142192,1768552239461,-303.10001603,0.00019089,2]
[402142193,1768552239470,-168.0,0.00019096,2]
[402142194,1768552239478,-500.0,0.0001915,2]
[402142195,1768552239487,-744.0,0.0001915,2]
[402142196,1768552239496,-500.0,0.0001915,2]
[402142197,1768552239505,-500.0,0.0001915,2]
[402142198,1768552239514,-500.0,0.0001915,2]
[402142199,1768552239523,-500.0,0.0001915,2]
[402142200,1768552239532,-156.21441213,0.00019165,63]
[402142201,1768552239542,-151.91326675,0.00019166,2]
[402142202,1768552239552,-390.90237806,0.00019178,2]
[402142203,1768552239561,-1562.04590274,0.00019178,2]
[402142204,1768552239570,-500.0,0.00019178,2]
[402142205,1768552239579,-1354.67,0.00019178,2]
[402142206,1768552239589,-1354.67,0.00019178,2]
[402142207,1768552239598,-1354.67,0.00019178,2]
[402142208,1768552239608,-1354.67,0.00019178,2]
[402142209,1768552239617,-1354.67,0.00019178,2]
[402142210,1768552239626,-1354.67,0.00019178,2]
[402142211,1768552239635,-1354.67,0.00019178,2]
[402142212,1768552239644,-1354.67,0.00019178,2]
[402142213,1768552239654,-1354.67,0.00019178,2]
[402142214,1768552239663,-1354.67,0.00019178,2]
[402142215,1768552239672,-1354.67,0.00019178,2]
[402142216,1768552239681,-1354.67,0.00019178,2]
[402142217,1768552239691,-1354.67,0.00019178,2]
[402142218,1768552239700,-1354.67,0.00019178,2]
[402142219,1768552239709,-1354.67,0.00019178,2]
[402142220,1768552239719,-1354.67,0.00019178,2]
[402142221,1768552239728,-1354.67,0.00019178,2]
[402142222,1768552239737,-1354.67,0.00019178,2]
[402142223,1768552239746,-1354.67,0.00019178,2]
[402142224,1768552239756,-1354.67,0.00019178,2]
[402142225,1768552239765,-1354.67,0.00019178,2]
[402142226,1768552239776,-1354.67,0.00019178,2]
[402142227,1768552239785,-1354.67,0.00019178,2]
[402142228,1768552239796,-1354.80968696,0.00019178,2]
[402142229,1768552239805,-168.0,0.00019204,2]
[402142230,1768552239815,-168.0,0.00019241,2]
[402142231,1768552239828,-276.0,0.00019244,2]
[402142232,1768552239838,-303.10001603,0.00019278,2]
[402142233,1768552239847,-151.55000808,0.00019278,2]
[402142234,1768552239858,-500.0,0.00019287,2]
[402142235,1768552239867,-744.0,0.00019287,2]
[402142236,1768552239876,-371.65237339,0.00019287,2]
[402142237,1768552239887,-500.0,0.00019287,2]
[402142238,1768552239896,-500.0,0.00019287,2]
[402142239,1768552239907,-500.0,0.00019287,2]
[402142240,1768552239916,-2147.0,0.00019287,2]
[402142241,1768552239926,-168.0,0.00019337,2]
[402142242,1768552239935,-35365.22420672,0.00019348,2]
[402142250,1768552241432,-3e-08,0.00019348,2]
[402142299,1768552744488,-154.79610216,0.00010827,2]
[402142300,1768552744545,-162.13702195,0.0001205,2]
[402142301,1768552744590,-498.42292613,0.00013273,2]
[402142302,1768552744631,-162.25135189,0.00013273,2]
[402142303,1768552744677,-500.0,0.00013698,2]
[402142304,1768552744720,-500.0,0.00013698,2]
[402142305,1768552744763,-500.0,0.00013698,2]
[402142306,1768552744803,-500.0,0.00013698,2]
[402142307,1768552744843,-500.0,0.00013698,2]
[402142308,1768552744883,-500.0,0.00013698,2]
[402142309,1768552744921,-500.0,0.00013698,2]
[402142310,1768552744961,-500.0,0.00013698,2]
[402142311,1768552747144,-500.0,0.00013698,2]
[402142312,1768552747189,-300.0,0.00013971,2]
[402142313,1768552747231,-191.3216859,0.0001405,2]
[402142314,1768552747273,-213.1408572,0.00014472,2]
[402142315,1768552747312,-390.90237806,0.00014732,2]
[402142316,1768552747348,-1809.28015768,0.00015,2]
[402142317,1768552750290,-3190.71984232,0.00015,2]
[402142318,1768552750319,-500.0,0.00015342,2]
[402142319,1768552750346,-527.02186791,0.000154,2]
[402142320,1768552750375,-500.0,0.00015748,2]
[402142321,1768552750403,-64.52657954,0.00015989,2]
[402142323,1768552753216,-435.47342046,0.00015989,2]
[402142324,1768552753247,-500.0,0.00015989,2]
[402142325,1768552753274,-500.0,0.00015989,2]
[402142326,1768552753303,-225.53791038,0.00015989,2]
[402142381,1768552981225,2898.1431323,0.00015665,2]
[402142421,1768553359745,-300.0,0.00013697,2]
[402142422,1768553359775,-300.0,0.00013697,2]
[402142423,1768553359805,-1057.0,0.00013697,2]
[402142424,1768553359834,-171.0,0.00013697,2]
[402142425,1768553359863,-166.33211693,0.00013698,2]
[402142426,1768553359892,-652.29,0.00013698,2]
[402142427,1768553359919,-652.29,0.00013698,2]
[402142428,1768553359948,-652.29,0.00013698,2]
[402142429,1768553359977,-652.29,0.00013698,2]
[402142430,1768553360004,-140.73576614,0.00013698,2]
[402142431,1768553366657,-511.55423386,0.00013698,2]
[402142432,1768553366686,-652.29,0.00013698,2]
[402142433,1768553366713,-652.29,0.00013698,2]
[402142434,1768553366740,-652.29,0.00013698,2]
[402142435,1768553366769,-652.29,0.00013698,2]
[402142436,1768553366796,-652.29,0.00013698,2]
[402142437,1768553366824,-652.29,0.00013698,2]
[402142438,1768553366852,-497.13153228,0.00013698,2]
[402142439,1768553375846,-155.15846772,0.00013698,2]
[402142440,1768553375874,-652.29,0.00013698,2]
[402142441,1768553375902,-652.29,0.0001382,2]
[402142442,1768553375932,-600.0,0.00013971,2]
[402142443,1768553375963,-300.0,0.00013971,2]
[402142444,1768553375993,-300.0,0.00013971,2]
[402142445,1768553376024,-300.0,0.00013971,2]
[402142446,1768553376378,-300.0,0.00013971,2]
[402142447,1768553376410,-300.0,0.00013971,2]
[402142448,1768553376441,-652.29,0.00014005,2]
[402142449,1768553376471,-652.29,0.00014005,2]
[402142450,1768553376670,-652.29,0.00014005,2]
[402142451,1768553376699,-652.29,0.00014005,2]
[402142452,1768553376729,-652.29,0.00014005,2]
[402142453,1768553376757,-300.0,0.00014054,2]
[402142454,1768553376784,-652.29,0.00014509,2]
[402142455,1768553376814,-652.29,0.00014509,2]
[402142456,1768553376844,-652.29,0.00014509,2]
[402142457,1768553376872,-652.29,0.00014509,2]
[402142458,1768553379081,-652.45,0.00014509,2]
[402142459,1768553379110,-500.0,0.00014999,2]
[402142460,1768553379138,-500.0,0.00014999,2]
[402142461,1768553379167,-500.0,0.00014999,2]
[402142462,1768553379195,-500.0,0.00014999,2]
[402142463,1768553379224,-500.0,0.00014999,2]
[402142464,1768553379253,-500.0,0.00014999,2]
[402142465,1768553379280,-500.0,0.00014999,2]
[402142466,1768553379308,-500.0,0.00014999,2]
[402142467,1768553379336,-204.9939668,0.00015068,2]
[402142468,1768553379376,-500.0,0.00015299,2]
[402142469,1768553379404,-720.0,0.00015368,2]
[402142494,1768553432402,-196.27189797,0.00015698,2]
[402142496,1768553432412,-372.99621783,0.00016274,2]
[402142551,1768553438434,-1398.83229391,0.00016274,2]
[402142553,1768553438445,-300.0,0.00016326,2]
[402142555,1768553438456,-300.0,0.00016326,2]
[402142557,1768553438466,-711.0,0.00016326,2]
[402142559,1768553438475,-311.85701,0.00016327,2]
[402142561,1768553438485,-30000.0,0.00016327,2]
[402142563,1768553438495,-2150.738,0.00016327,2]
[402142565,1768553438504,-740.889171,0.00016374,2]
[402142567,1768553438515,-1041.66666667,0.00016535,2]
[402142570,1768553438524,-600.0,0.00016653,2]
[402142572,1768553438534,-160.92,0.00016724,2]
[402142573,1768553438543,-1001.47290127,0.00016799,2]
[402142575,1768553438552,-404.79077482,0.00016799,2]
[402142577,1768553438561,-333.4598592,0.00016799,2]
[402142579,1768553438571,-500.0,0.00016799,2]
[402142581,1768553438580,-648402.07947357,0.000168,2]
[402142752,1768553443670,-309.73,0.000168,2]
[402142758,1768553446473,-300.0,0.000168,2]
[402142763,1768553446834,200.0,0.0001121,20]
[402142764,1768553447730,218.77,0.00010658,2]
[402142765,1768553448126,291.69,0.00011478,2]
[402142766,1768553448562,364.62,0.00012298,2]
[402142767,1768553448977,437.54,0.00013118,2]
[402142768,1768553449382,510.46,0.00013938,2]
[402142769,1768553522736,185.75,0.00010725,2]
[402142770,1768553523001,247.67,0.0001155,2]
[402142771,1768553523604,309.59,0.00012375,2]
[402142772,1768553523995,371.51,0.00013201,2]
[402142773,1768553527996,433.43,0.00014026,2]
[402146726,1768553598519,281.77,9.862e-05,2]
[402146805,1768553599257,422.66,0.00010684,2]
[402146816,1768553599356,563.55,0.00011506,2]
[402146856,1768553599743,704.43,0.00012327,2]
[402146896,1768553600174,845.32,0.00013149,2]
[402146938,1768553600631,986.2,0.00013971,2]
[402153967,1768553680202,-184.95,9.841e-05,2]
[402153970,1768553680223,-125.68267869,0.00010661,2]
[402154375,1768553684208,-151.73732131,0.00010661,2]
[402154378,1768553684229,-71.41134802,0.00011481,2]
[402154384,1768553684269,-298.47865198,0.00011481,2]
[402154388,1768553684297,-462.36,0.00012301,2]
[402154392,1768553684323,-554.84,0.00013121,2]
[402154396,1768553684349,-647.31,0.00013941,2]
[402160768,1768553755218,-214.78005904,9.861e-05,2]
[402161006,1768553757882,-16.15994096,9.861e-05,2]
[402161014,1768553757965,-178.39900208,0.00010682,2]
[402161656,1768553764744,-168.01099792,0.00010682,2]
[402161660,1768553764766,-173.09868166,0.00011504,2]
[402162036,1768553769047,-288.78131834,0.00011504,2]
[402162039,1768553769070,-152.36876977,0.00012326,2]
[402162604,1768553774702,-308.75,0.00012326,2]
[402162811,1768553776655,-116.23123023,0.00012326,2]
[402162814,1768553776678,-230.74656221,0.00013147,2]
[402163257,1768553781618,-212.95220756,0.00013147,2]
[402163330,1768553783687,-158.66195447,0.00013147,2]
[402163331,1768553830258,-203.77,9.379e-05,2]
[402163332,1768553830281,-0.94804553,0.00010231,2]
[402163333,1768553837169,-178.51215727,0.00010231,2]
[402163334,1768553839864,-228.0797972,0.00010231,2]
[402163335,1768553839889,-61.97804553,0.00011084,2]
[402163336,1768553842004,-281.67093406,0.00011084,2]
[402163337,1768553846419,-198.26906594,0.00011084,2]
[402163338,1768553848990,-69.40195447,0.00011084,2]
[402163339,1768553849013,-162.15804553,0.00011936,2]
[402163340,1768553852834,-206.78,0.00011936,2]
[402163341,1768553854876,-284.35392629,0.00011936,2]
[402163342,1768553858286,-161.79802818,0.00011936,2]
[402163343,1768553858313,-146.76804553,0.00012789,2]
[402163344,1768553863332,-242.4976663,0.00012789,2]
[402163345,1768553865968,-156.72820523,0.00012789,2]
[402163346,1768553868784,-222.14267006,0.00012789,2]
[402163347,1768553873666,-250.72341288,0.00012789,2]
[402163348,1768553887052,-1000.0,0.00013641,2]
[402163349,1768553899831,-1000.0,0.00014494,2]
[402163350,1768553903065,-309.49228697,0.00014859,2]
[402163351,1768553903086,-500.0,0.00014999,2]
[402163352,1768553903107,-190.50771303,0.00014999,2]
[402163353,1768553907242,-179.95,9.316e-05,2]
[402163354,1768553907263,-359.89,0.00010163,2]
[402163355,1768553907283,-460.16,0.0001101,2]
[402163356,1768553920276,-79.68,0.0001101,2]
[402163357,1768553920299,-304.28460291,0.00011857,2]
[402163358,1768553923434,-154.38,0.00011857,2]
[402163359,1768553949742,-261.11539709,0.00011857,2]
[402163360,1768553949763,-738.88460291,0.00012704,2]
[402163361,1768553955336,-159.82927897,0.00012281,2]
[402163362,1768553955358,-160.84539709,0.00012704,2]
[402163363,1768553955379,-679.32532394,0.00013551,2]
[402163364,1768554003898,155.72,3e-05,2]
[402163365,1768554004461,155.72,3.1e-05,2]
[402163366,1768554005047,155.72,3.2e-05,2]
[402163367,1768554005604,155.72,3.3e-05,2]
[402163368,1768554006383,155.72,3.4e-05,2]
[402163369,1768554006632,155.72,3.5e-05,2]
[402163370,1768554007182,155.72,3.5e-05,2]
[402163371,1768554007585,155.72,3.6e-05,2]
[402163372,1768554008126,155.72,3.7e-05,2]
[402163373,1768554008694,155.72,3.8e-05,2]
[402163374,1768554009261,155.72,3.9e-05,2]
[402163375,1768554009645,155.72,4e-05,2]
[402163376,1768554010119,155.72,4.1e-05,2]
[402163377,1768554010782,155.72,4.2e-05,2]
[402163378,1768554011103,155.72,4.3e-05,2]
[402163379,1768554011566,155.72,4.4e-05,2]
[402163380,1768554012028,155.72,4.5e-05,2]
[402163381,1768554012527,155.72,4.5e-05,2]
[402163382,1768554013077,155.72,4.6e-05,2]
[402163383,1768554013612,155.72,4.7e-05,2]
[402163384,1768554014093,155.72,4.8e-05,2]
[402163385,1768554014565,155.72,4.9e-05,2]
[402163386,1768554015144,155.72,5e-05,2]
[402163388,1768554279695,-307.74,9.212e-05,2]
[402163389,1768554280232,-156.63269339,9.631e-05,2]